bitfinex-derivatives/quotes_SOLF0:USTF0_20250413
["timestamp","ask_amount","ask_price","bid_price","bid_amount"]
[1744563186967,7.7301,129.4,129.39,0.05086316]
[1744563188474,7.78555191,129.41,129.39,0.05086316]
[1744563188874,0.05575191,129.41,129.39,0.05086316]
[1744563189173,7.7301,129.4,129.39,0.05086316]
[1744563190572,16.72268442,129.4,129.39,0.05086316]
[1744563193571,7.7301,129.4,129.39,0.05086316]
[1744563193772,7.78555191,129.41,129.39,0.05086316]
[1744563194078,0.05575191,129.41,129.39,0.05086316]
[1744563195079,7.7301,129.4,129.39,0.05086316]
[1744563200580,7.7323,129.37,129.34,38.97258442]
[1744563201480,7.7323,129.37,129.34,46.70568442]
[1744563201677,7.78889195,129.37,129.34,46.75943476]
[1744563202280,7.78889195,129.37,129.35,7.733]
[1744563203582,0.05659195,129.37,129.35,7.733]
[1744563203982,0.05659195,129.37,129.36,7.7325]
[1744563204382,0.05659195,129.37,129.34,39.02633476]
[1744563204982,0.05659195,129.37,129.35,7.7328]
[1744563205683,7.78849195,129.37,129.35,7.7328]
[1744563206681,7.7325,129.36,129.34,46.75983476]
[1744563206885,8.99258442,129.36,129.34,0.05375034]
[1744563207384,13.17458442,129.36,129.34,0.05375034]
[1744563207780,13.17458442,129.36,129.31,29.98]
[1744563207986,13.17458442,129.36,129.28,364.0]
[1744563207987,8.99258442,129.34,129.29,8.99258442]
[1744563208385,16.72658442,129.34,129.31,7.7352]
[1744563208687,7.734,129.34,129.31,16.72778442]
[1744563208985,7.78549219,129.34,129.32,7.7348]
[1744563209182,0.05149219,129.34,129.33,8.99258442]
[1744563209581,0.05149219,129.34,129.33,16.72688442]
[1744563217999,0.05149219,129.34,129.33,7.7343]
[1744563218199,0.05149219,129.34,129.33,16.72688442]
[1744563230506,2.1177,129.4,129.33,8.99258442]
[1744563230808,2.1177,129.4,129.36,8.99258442]
[1744563231007,9.848,129.4,129.37,7.7315]
[1744563231211,8.99258442,129.42,129.36,8.99258442]
[1744563231511,7.7293,129.42,129.39,7.7304]
[1744563231810,0.05201206,129.4,129.39,7.7304]
[1744563232009,7.7283,129.43,129.4,7.7297]
[1744563232212,0.05757001,129.41,129.4,7.7297]
[1744563232404,0.05757001,129.41,129.4,7.78648666]
[1744563235107,0.05757001,129.41,129.4,46.73907108]
[1744563236013,0.05757001,129.41,129.4,37.74648666]
[1744563237109,0.05757001,129.41,129.4,46.73907108]
[1744563240217,0.05757001,129.41,129.4,37.74648666]
[1744563240416,0.05757001,129.41,129.4,46.73907108]
[1744563240917,0.05757001,129.41,129.4,30.01678666]
[1744563241307,0.05757001,129.41,129.4,39.00937108]
[1744563242217,0.05757001,129.41,129.4,46.73947108]
[1744563245119,0.05757001,129.41,129.4,30.01678666]
[1744563248423,0.05757001,129.41,129.4,37.74688666]
[1744563249422,0.05757001,129.41,129.4,30.01678666]
[1744563250722,0.05757001,129.41,129.4,46.73947108]
[1744563259329,0.05757001,129.41,129.4,16.77947108]
[1744563259627,0.05757001,129.41,129.4,46.67947108]
[1744563266834,0.05757001,129.41,129.4,38.94937108]
[1744563267035,0.05757001,129.41,129.4,29.95678666]
[1744563269034,7.78707001,129.41,129.4,0.05678666]
[1744563269934,7.7308,129.39,129.37,29.9]
[1744563270235,7.7308,129.39,129.37,38.89258442]
[1744563270736,7.7304,129.4,129.37,46.62448442]
[1744563271039,0.05757001,129.41,129.37,38.89258442]
[1744563271537,7.731,129.39,129.37,38.89258442]
[1744563272137,7.7313,129.38,129.37,38.89258442]
[1744563272342,7.7313,129.38,129.37,29.9]
[1744563277344,7.731,129.39,129.37,29.9]
[1744563280040,7.7313,129.38,129.37,29.9]
[1744563280240,6.1522,129.4,129.37,29.9]
[1744563280644,7.7312,129.39,129.37,29.9]
[1744563280842,6.1522,129.4,129.37,29.9]
[1744563281441,7.7313,129.38,129.37,29.9]
[1744563281846,6.1522,129.4,129.37,29.9]
[1744563282450,7.731,129.39,129.37,29.9]
[1744563284350,7.7313,129.38,129.37,29.9]
[1744563284542,7.7313,129.38,129.35,16.72538442]
[1744563284945,7.78733093,129.38,129.36,7.7325]
[1744563285144,0.05603093,129.38,129.36,7.7325]
[1744563286147,0.05603093,129.38,129.35,8.99258442]
[1744563286148,0.05603093,129.38,129.37,7.7319]
[1744563286351,0.05603093,129.38,129.37,16.72448442]
[1744563286850,0.05603093,129.38,129.37,46.60448442]
[1744563287153,8.99258442,129.44,129.4,7.7299]
[1744563287452,8.99258442,129.44,129.4,8.99258442]
[1744563287753,16.72068442,129.44,129.41,7.7294]
[1744563288249,7.7284,129.43,129.4,16.72238442]
[1744563288449,7.7284,129.43,129.41,0.05641468]
[1744563289656,7.77773608,129.44,129.41,7.78581468]
[1744563289857,0.04973608,129.44,129.41,0.05641468]
[1744563290956,0.04973608,129.44,129.42,16.72098442]
[1744563295055,0.04973608,129.44,129.43,7.7283]
[1744563298259,0.04973608,129.44,129.42,16.72118442]
[1744563298458,0.04973608,129.44,129.42,7.7286]
[1744563300060,0.04973608,129.44,129.43,7.7283]
[1744563302364,0.04973608,129.44,129.43,37.6083]
[1744563303265,29.88,129.54,129.43,29.88]
[1744563303465,8.99258442,129.52,129.47,8.99258442]
[1744563303866,7.7247,129.5,129.47,8.99258442]
[1744563304161,8.99258442,129.52,129.47,8.99258442]
[1744563304468,8.99258442,129.48,129.43,29.88]
[1744563304969,7.7262,129.47,129.44,8.99258442]
[1744563305169,6.129,129.53,129.43,37.6077]
[1744563305170,8.99258442,129.5,129.46,8.99258442]
[1744563305368,8.99258442,129.5,129.46,38.85258442]
[1744563305565,7.78327006,129.49,129.47,0.04873524]
[1744563308271,7.7253,129.48,129.47,0.04873524]
[1744563309969,7.7276,129.45,129.43,29.82]
[1744563310865,7.7267,129.46,129.43,37.5482]
[1744563311060,0.05597757,129.45,129.43,37.5482]
[1744563311771,0.05597757,129.45,129.44,16.72028442]
[1744563313768,4.1553,129.52,129.46,7.7262]
[1744563314073,4.1553,129.52,129.47,38.81258442]
[1744563314269,4.1553,129.52,129.47,8.99258442]
[1744563314572,7.7245,129.5,129.48,29.82]
[1744563314975,0.05572968,129.5,129.48,29.8731093]
[1744563315176,0.05572968,129.5,129.49,8.99258442]
[1744563315374,7.77982968,129.5,129.49,8.99258442]
[1744563316676,0.05572968,129.5,129.49,8.99258442]
[1744563317278,0.05572968,129.5,129.49,16.71728442]
[1744563319975,8.99258442,129.57,129.51,7.7231]
[1744563320183,8.99258442,129.57,129.53,8.99258442]
[1744563320975,8.99258442,129.55,129.52,29.82]
[1744563321178,8.99258442,129.53,129.49,29.82]
[1744563321576,8.99258442,129.53,129.5,0.0566634]
[1744563321777,0.05651423,129.52,129.5,0.0566634]
[1744563324381,0.05651423,129.52,129.5,7.7807634]
[1744563325385,0.05651423,129.52,129.51,7.7235]
[1744563326889,0.05651423,129.52,129.5,7.7805634]
[1744563327080,0.05651423,129.52,129.5,0.0566634]
[1744563327485,0.05651423,129.52,129.51,7.7235]
[1744563331287,0.05651423,129.52,129.5,7.7804634]
[1744563332886,0.05651423,129.52,129.51,7.7235]
[1744563334391,0.05651423,129.52,129.5,7.7804634]
[1744563335384,7.77951423,129.52,129.5,0.0566634]
[1744563338891,7.77951423,129.52,129.5,7.7807634]
[1744563339192,0.05651423,129.52,129.5,7.7807634]
[1744563341094,0.05651423,129.52,129.51,7.7235]
[1744563343093,0.05651423,129.52,129.5,7.7804634]
[1744563343389,0.05651423,129.52,129.5,0.0566634]
[1744563343796,0.05651423,129.52,129.51,7.7235]
[1744563347096,0.05651423,129.52,129.5,0.0566634]
[1744563348096,7.77971423,129.52,129.5,0.0566634]
[1744563349296,7.7235,129.51,129.5,0.0566634]
[1744563351499,7.77971423,129.52,129.5,0.0566634]
[1744563354100,7.77971423,129.52,129.5,7.7807634]
[1744563359112,7.77971423,129.52,129.5,0.0566634]
[1744563359314,7.7235,129.51,129.5,0.0566634]
[1744563360315,12.01911423,129.52,129.5,0.0566634]
[1744563360613,7.77971423,129.52,129.5,0.0566634]
[1744563361510,0.05651423,129.52,129.5,0.0566634]
[1744563361720,0.05651423,129.52,129.51,8.99258442]
[1744563362816,10.95718442,129.58,129.51,8.99258442]
[1744563363012,1.9646,129.58,129.54,8.99258442]
[1744563363319,8.99258442,129.59,129.54,8.99258442]
[1744563363708,8.99258442,129.59,129.55,7.7208]
[1744563363915,46.49108442,129.6,129.55,7.7208]
[1744563364115,0.05548166,129.58,129.56,0.05907742]
[1744563365220,0.05548166,129.58,129.56,7.77957742]
[1744563365816,0.05548166,129.58,129.56,0.05907742]
[1744563366014,9.04806608,129.58,129.56,0.05907742]
[1744563367917,9.04806608,129.58,129.56,7.77947742]
[1744563368121,9.04806608,129.58,129.56,0.05907742]
[1744563368323,0.05548166,129.58,129.56,0.05907742]
[1744563368621,0.05548166,129.58,129.57,7.7199]
[1744563370314,0.05548166,129.58,129.57,16.71248442]
[1744563372921,8.166e-05,129.58,129.57,16.71248442]
[1744563373628,18.68068442,129.65,129.62,7.7168]
[1744563373827,18.68068442,129.65,129.6,8.99258442]
[1744563374029,18.68068442,129.65,129.62,7.7164]
[1744563374322,8.99258442,129.65,129.59,29.74]
[1744563374524,29.74,129.67,129.63,7.7161]
[1744563374525,38.73258442,129.67,129.63,7.7161]
[1744563374928,0.05646012,129.66,129.62,8.99258442]
[1744563375129,0.05646012,129.66,129.64,0.05267785]
[1744563375325,0.05646012,129.66,129.64,7.76807785]
[1744563375627,0.05646012,129.66,129.64,0.05267785]
[1744563375818,7.77126012,129.66,129.64,0.05267785]
[1744563376021,0.05646012,129.66,129.64,0.05267785]
[1744563376630,7.77106012,129.66,129.64,0.05267785]
[1744563377524,7.7152,129.65,129.64,0.05267785]
[1744563377734,16.70778442,129.65,129.64,0.05267785]
[1744563378029,7.7152,129.65,129.64,0.05267785]
[1744563379230,7.77126012,129.66,129.64,0.05267785]
[1744563381635,7.7152,129.65,129.64,0.05267785]
[1744563382633,16.70778442,129.65,129.64,0.05267785]
[1744563383036,7.7169,129.63,129.59,29.72]
[1744563383337,7.7169,129.63,129.6,7.7179]
[1744563384241,7.7744852,129.63,129.6,7.76766275]
[1744563385239,0.0575852,129.63,129.6,9.04234717]
[1744563385541,0.0575852,129.63,129.62,7.717]
[1744563387340,0.0575852,129.63,129.6,9.04234717]
[1744563388039,7.7739852,129.63,129.61,7.7175]
[1744563389943,7.7739852,129.63,129.6,16.76024717]
[1744563391844,7.7171,129.62,129.6,9.04234717]
[1744563392144,0.0575852,129.63,129.6,9.04234717]
[1744563392343,0.0575852,129.63,129.6,16.76034717]
[1744563393047,7.7742852,129.63,129.6,16.76034717]
[1744563393348,0.0575852,129.63,129.61,7.7174]
[1744563394447,7.7740852,129.63,129.61,7.7174]
[1744563395347,7.7740852,129.63,129.6,16.76014717]
[1744563395741,7.717,129.62,129.6,7.76756275]
[1744563396347,7.717,129.62,129.6,0.04976275]
[1744563397247,7.7742852,129.63,129.6,7.76756275]
[1744563397650,0.0575852,129.63,129.6,0.04976275]
[1744563398244,7.7172,129.62,129.6,0.04976275]
[1744563400052,7.7176,129.61,129.6,0.04976275]
[1744563400749,0.0575852,129.63,129.6,0.04976275]
[1744563401054,7.7173,129.62,129.6,7.76786275]
[1744563403551,7.7176,129.61,129.6,0.04976275]
[1744563404055,0.0575852,129.63,129.6,7.76786275]
[1744563405255,7.7173,129.62,129.6,7.76786275]
[1744563410057,7.7173,129.62,129.6,0.04976275]
[1744563412566,7.7173,129.62,129.6,7.76786275]
[1744563413468,7.7173,129.62,129.6,0.04976275]
[1744563415072,7.7173,129.62,129.6,7.76786275]
[1744563418375,7.7742852,129.63,129.6,16.76044717]
[1744563418572,0.0575852,129.63,129.61,7.7175]
[1744563419475,7.7742852,129.63,129.61,7.7175]
[1744563420670,7.7742852,129.63,129.6,16.76014717]
[1744563420872,7.717,129.62,129.6,16.76014717]
[1744563423076,7.717,129.62,129.6,0.04976275]
[1744563423270,7.7176,129.61,129.6,0.04976275]
[1744563423466,9.05016962,129.63,129.6,0.04976275]
[1744563423772,7.7173,129.62,129.6,7.76786275]
[1744563428380,16.76686962,129.63,129.6,7.76786275]
[1744563428570,0.0575852,129.63,129.6,0.04976275]
[1744563428777,0.0575852,129.63,129.62,16.70958442]
[1744563429280,6.1649,129.71,129.62,8.99258442]
[1744563429479,7.7131,129.69,129.67,8.99258442]
[1744563429783,8.99258442,129.68,129.63,8.99258442]
[1744563430178,7.7149,129.66,129.63,8.99258442]
[1744563430480,7.76604769,129.66,129.63,9.04342352]
[1744563430681,7.7155,129.65,129.63,0.0508391]
[1744563430881,0.05114769,129.66,129.63,0.0508391]
[1744563431282,7.76624769,129.66,129.63,7.7668391]
[1744563431881,7.7153,129.65,129.63,7.7668391]
[1744563432483,7.7153,129.65,129.63,0.0508391]
[1744563434583,7.7158,129.64,129.63,0.0508391]
[1744563434785,0.05114769,129.66,129.63,0.0508391]
[1744563434988,7.7155,129.65,129.63,0.0508391]
[1744563435388,7.7155,129.65,129.63,7.7671391]
[1744563437085,7.7158,129.64,129.63,0.0508391]
[1744563437690,16.70838442,129.64,129.63,0.0508391]
[1744563438988,7.7158,129.64,129.63,0.0508391]
[1744563439985,16.70838442,129.64,129.63,0.0508391]
[1744563443190,4.1958,129.65,129.59,29.66]
[1744563443191,8.99258442,129.62,129.59,29.66]
[1744563443987,16.71008442,129.62,129.59,37.3784]
[1744563444193,16.76838196,129.62,129.59,37.43122821]
[1744563444692,7.7178,129.61,129.59,37.43122821]
[1744563444992,9.05088196,129.62,129.59,0.05282821]
[1744563445196,7.7176,129.61,129.59,0.05282821]
[1744563446798,7.7182,129.6,129.59,0.05282821]
[1744563451203,7.7179,129.61,129.59,0.05282821]
[1744563453098,9.05088196,129.62,129.59,0.05282821]
[1744563453099,7.7182,129.6,129.59,0.05282821]
[1744563456507,9.05088196,129.62,129.59,0.05282821]
[1744563456804,9.05088196,129.62,129.59,7.77122821]
[1744563457805,16.76818196,129.62,129.59,7.77122821]
[1744563458806,7.77559754,129.62,129.59,7.77122821]
[1744563459709,7.7176,129.61,129.59,7.77122821]
[1744563460208,7.77559754,129.62,129.59,7.77122821]
[1744563460608,0.05829754,129.62,129.59,9.04541263]
[1744563461308,0.05829754,129.62,129.61,7.7176]
[1744563461509,0.05829754,129.62,129.61,16.71018442]
[1744563461811,0.00510447,129.62,129.61,16.71018442]
[1744563465811,0.00510447,129.62,129.6,7.7179]
[1744563466011,0.00510447,129.62,129.59,29.71282821]
[1744563466311,7.72240447,129.62,129.59,37.43122821]
[1744563466511,8.99768889,129.62,129.59,29.71282821]
[1744563466714,7.7178,129.61,129.59,29.71282821]
[1744563468217,16.71518889,129.62,129.59,37.43132821]
[1744563468418,8.99768889,129.62,129.59,37.43132821]
[1744563470012,7.72240447,129.62,129.59,37.43132821]
[1744563473919,7.72240447,129.62,129.6,7.7181]
[1744563474720,0.00510447,129.62,129.6,7.7181]
[1744563475021,0.00510447,129.62,129.61,7.7176]
[1744563480817,4.0168,129.69,129.6,14.93758442]
[1744563481017,8.99258442,129.69,129.6,5.945]
[1744563481323,8.99258442,129.67,129.63,8.99258442]
[1744563481519,8.99258442,129.67,129.61,8.99258442]
[1744563481721,16.70688442,129.67,129.61,8.99258442]
[1744563481924,0.04949907,129.65,129.64,7.7154]
[1744563483231,0.04949907,129.65,129.63,7.7668918]
[1744563486426,7.76489907,129.65,129.63,0.0507918]
[1744563487229,7.7158,129.64,129.63,0.0507918]
[1744563495930,16.70838442,129.64,129.63,0.0507918]
[1744563496137,8.99258442,129.64,129.58,38.57258442]
[1744563496535,8.99258442,129.64,129.6,7.7179]
[1744563497137,7.77086094,129.63,129.61,0.05085581]
[1744563497438,0.05436094,129.63,129.61,0.05085581]
[1744563498236,16.70958442,129.62,129.61,0.05085581]
[1744563509540,0.05436094,129.63,129.61,0.05085581]
[1744563510140,0.05436094,129.63,129.62,8.99258442]
[1744563510443,0.05436094,129.63,129.62,16.70958442]
[1744563510935,0.05436094,129.63,129.62,7.717]
[1744563511140,0.05436094,129.63,129.61,37.34815581]
[1744563511340,0.05436094,129.63,129.61,46.34074023]
[1744563511541,0.05436094,129.63,129.61,38.62344023]
[1744563513144,0.05436094,129.63,129.62,7.717]
[1744563521340,0.05436094,129.63,129.62,16.70958442]
[1744563522245,0.05436094,129.63,129.62,46.28958442]
[1744563522438,4.0206,129.7,129.67,7.7136]
[1744563522644,8.99258442,129.69,129.64,8.99258442]
[1744563523049,8.99258442,129.69,129.68,7.7134]
[1744563523250,38.57258442,129.71,129.66,8.99258442]
[1744563523659,0.05490579,129.7,129.69,7.7128]
[1744563526752,0.05490579,129.7,129.67,0.05731617]
[1744563527350,0.05490579,129.7,129.69,7.7128]
[1744563529555,0.05490579,129.7,129.68,7.7132]
[1744563529856,7.76730579,129.7,129.67,0.05731617]
[1744563530154,7.76730579,129.7,129.67,7.77101617]
[1744563530854,0.05490579,129.7,129.68,7.7133]
[1744563531854,7.76710579,129.7,129.68,7.7133]
[1744563532158,7.76710579,129.7,129.67,7.77101617]
[1744563539658,0.05490579,129.7,129.67,0.05731617]
[1744563540364,0.05490579,129.7,129.68,7.7134]
[1744563547573,8.99258442,129.69,129.67,0.05731617]
[1744563548270,16.70568442,129.69,129.67,0.05731617]
[1744563549175,16.70568442,129.69,129.67,7.77131617]
[1744563549363,16.70568442,129.69,129.67,0.05731617]
[1744563551368,16.70568442,129.69,129.67,7.77121617]
[1744563552472,7.76740579,129.7,129.68,7.7134]
[1744563553274,7.76740579,129.7,129.67,0.05731617]
[1744563553773,7.76740579,129.7,129.68,7.7134]
[1744563556366,0.05490579,129.7,129.69,7.7128]
[1744563558377,0.05490579,129.7,129.68,7.7131]
[1744563562579,7.76720579,129.7,129.68,7.7131]
[1744563564578,7.7129,129.69,129.67,0.05731617]
[1744563564782,16.70548442,129.69,129.67,0.05731617]
[1744563565183,8.99258442,129.69,129.67,0.05731617]
[1744563565683,16.70538442,129.69,129.67,7.77101617]
[1744563566181,8.99258442,129.69,129.67,7.77101617]
[1744563567488,16.70548442,129.69,129.67,7.77101617]
[1744563568889,7.7134,129.68,129.67,0.05731617]
[1744563569089,7.7134,129.68,129.67,3.18370863]
[1744563570989,7.7134,129.68,129.67,3.18342872]
[1744563572987,7.7134,129.68,129.67,0.05731617]
[1744563573487,7.7146,129.66,129.64,7.7157]
[1744563573791,7.7146,129.66,129.65,3.12721743]
[1744563577590,7.7146,129.66,129.65,3.12778527]
[1744563578685,7.7152,129.65,129.64,0.05237973]
[1744563578890,8.99258442,129.65,129.59,29.52]
[1744563579090,8.99258442,129.62,129.59,37.2385]
[1744563579282,7.7176,129.61,129.59,29.52]
[1744563580092,0.05388713,129.61,129.59,29.57558295]
[1744563580591,0.05388713,129.61,129.59,37.29428295]
[1744563584396,7.77148713,129.61,129.59,37.29428295]
[1744563586000,0.05388713,129.61,129.59,37.29428295]
[1744563586498,0.05388713,129.61,129.6,7.7182]
[1744563595106,7.7155,129.65,129.59,38.56816737]
[1744563595307,7.7155,129.65,129.61,8.99258442]
[1744563595709,7.7161,129.64,129.61,8.99258442]
[1744563595905,16.70868442,129.64,129.59,38.51258442]
[1744563596210,0.05377968,129.63,129.6,0.05150047]
[1744563597213,0.05377968,129.63,129.62,7.7167]
[1744563600713,0.05377968,129.63,129.61,7.7174]
[1744563603814,0.05377968,129.63,129.62,7.717]
[1744563604115,0.05377968,129.63,129.6,0.05150047]
[1744563604514,0.05377968,129.63,129.61,7.717]
[1744563609218,7.77017968,129.63,129.61,7.717]
[1744563610417,0.05377968,129.63,129.6,0.05150047]
[1744563611417,7.7176,129.61,129.6,0.05150047]
[1744563613321,7.7171,129.62,129.6,7.76970047]
[1744563614526,7.7171,129.62,129.6,0.05150047]
[1744563615422,7.7176,129.61,129.6,0.05150047]
[1744563632026,7.7206,129.56,129.53,29.46]
[1744563632535,7.7206,129.56,129.53,37.1821]
[1744563633132,7.77409591,129.56,129.53,37.23136419]
[1744563633839,7.7212,129.55,129.53,37.23136419]
[1744563634433,0.05349591,129.56,129.53,29.50926419]
[1744563634639,0.05349591,129.56,129.55,8.99258442]
[1744563635229,0.05349591,129.56,129.55,16.71368442]
[1744563642456,7.7185,129.6,129.58,7.7193]
[1744563642852,7.7185,129.6,129.57,16.71228442]
[1744563643556,7.76903034,129.6,129.57,16.76087976]
[1744563645855,7.76903034,129.6,129.57,7.76829534]
[1744563647558,7.76903034,129.6,129.58,7.7193]
[1744563655461,7.7189,129.59,129.57,0.04859534]
[1744563656961,7.7194,129.58,129.57,0.04859534]
[1744563672277,8.99258442,129.59,129.53,29.42]
[1744563672473,8.99258442,129.55,129.53,29.42]
[1744563673276,7.7217,129.54,129.53,29.42]
[1744563673476,7.7217,129.54,129.53,0.05011326]
[1744563677379,38.44966141,129.55,129.47,40.48328442]
[1744563677582,8.99258442,129.51,129.47,31.4907]
[1744563677781,8.99258442,129.51,129.47,29.4]
[1744563678084,7.7246,129.5,129.47,37.1256]
[1744563678582,7.77709977,129.5,129.47,37.18431356]
[1744563679485,0.05249977,129.5,129.47,37.18431356]
[1744563679684,0.05249977,129.5,129.47,29.45871356]
[1744563679982,7.77699977,129.5,129.47,0.05871356]
[1744563680283,8.99258442,129.49,129.47,0.05871356]
[1744563680484,16.71758442,129.49,129.47,0.05871356]
[1744563680678,0.05249977,129.5,129.49,7.7247]
[1744563680879,0.05249977,129.5,129.49,16.71728442]
[1744563681685,29.4,129.55,129.51,7.7233]
[1744563681984,7.722,129.54,129.51,7.7233]
[1744563682180,8.99258442,129.56,129.51,8.99258442]
[1744563682382,2.1518,129.58,129.53,8.99258442]
[1744563682585,29.4,129.59,129.55,8.99258442]
[1744563682784,0.05470702,129.57,129.55,16.71338442]
[1744563685088,0.05470702,129.57,129.56,7.7205]
[1744563686286,0.05470702,129.57,129.56,37.1205]
[1744563687888,0.05470702,129.57,129.56,7.7205]
[1744563695397,9.04729144,129.57,129.54,0.0505451]
[1744563696298,0.05470702,129.57,129.55,8.99258442]
[1744563698197,0.05470702,129.57,129.56,7.7205]
[1744563701894,0.05470702,129.57,129.56,37.1005]
[1744563702099,13.03668442,129.63,129.56,29.38]
[1744563702301,13.03668442,129.63,129.59,8.99258442]
[1744563703100,0.05827351,129.62,129.6,0.05493783]
[1744563703301,7.77547351,129.62,129.6,0.05493783]
[1744563704400,7.7176,129.61,129.6,0.05493783]
[1744563705400,7.77547351,129.62,129.6,0.05493783]
[1744563706700,7.7176,129.61,129.6,0.05493783]
[1744563707495,16.71018442,129.61,129.6,0.05493783]
[1744563708098,7.7195,129.58,129.56,29.38]
[1744563709402,7.77888515,129.58,129.56,29.43377365]
[1744563710198,7.7199,129.57,129.56,29.43377365]
[1744563711504,16.71248442,129.57,129.56,0.05377365]
[1744563711705,8.99258442,129.57,129.53,29.34]
[1744563712601,7.7216,129.55,129.53,29.34]
[1744563712805,7.7216,129.55,129.54,0.05650991]
[1744563713007,7.77955019,129.55,129.54,0.05650991]
[1744563715605,16.77213461,129.55,129.54,0.05650991]
[1744563717409,9.05053461,129.55,129.48,29.36]
[1744563717710,8.99258442,129.53,129.48,29.36]
[1744563718109,7.7239,129.51,129.48,37.085]
[1744563718509,7.78225694,129.51,129.48,37.11681996]
[1744563718706,15.4362,129.61,129.48,37.11681996]
[1744563718707,29.36,129.64,129.49,8.99258442]
[1744563718902,8.99258442,129.61,129.56,8.99258442]
[1744563719211,29.36,129.64,129.58,8.99258442]
[1744563719406,29.36,129.64,129.58,38.35258442]
[1744563719909,0.05192524,129.62,129.6,0.05471847]
[1744563721813,7.7176,129.61,129.6,0.05471847]
[1744563723716,7.7188,129.59,129.58,29.36]
[1744563723911,7.7188,129.59,129.55,29.36]
[1744563725013,0.05453005,129.58,129.56,7.75585843]
[1744563725810,0.05453005,129.58,129.56,0.03545843]
[1744563726508,7.7199,129.57,129.56,0.03545843]
[1744563727114,7.722,129.54,129.52,29.36]
[1744563728313,7.77253137,129.54,129.52,29.36]
[1744563728715,7.7223,129.53,129.5,7.7239]
[1744563729116,0.05053137,129.54,129.49,29.36]
[1744563729419,7.7233,129.52,129.49,37.0847]
[1744563730015,7.7237,129.51,129.49,29.36]
[1744563730216,13.99830436,129.54,129.49,29.36]
[1744563730420,0.05924453,129.51,129.49,29.36]
[1744563730616,0.05924453,129.51,129.49,37.0846]
[1744563731315,0.05924453,129.51,129.5,7.7241]
[1744563731620,2.1191,129.57,129.49,43.41358127]
[1744563731815,2.1191,129.57,129.49,43.35830436]
[1744563732016,7.7213,129.55,129.52,7.7224]
[1744563732212,611.42,129.61,129.52,29.36]
[1744563732422,644.9504,129.61,129.52,29.36]
[1744563732616,7.77302944,129.58,129.55,7.77274919]
[1744563732820,0.05352944,129.58,129.55,0.05184919]
[1744563733223,0.05352944,129.58,129.56,7.7205]
[1744563735922,7.77292944,129.58,129.56,7.7205]
[1744563736130,0.05352944,129.58,129.55,29.41184919]
[1744563736529,0.05352944,129.58,129.55,37.13264919]
[1744563737530,7.77312944,129.58,129.55,37.13264919]
[1744563739030,0.05352944,129.58,129.55,29.41184919]
[1744563739533,7.7204,129.57,129.55,29.41184919]
[1744563740633,7.7205,129.56,129.55,29.41184919]
[1744563741932,7.7205,129.56,129.55,0.05184919]
[1744563742736,7.77322944,129.58,129.55,7.77264919]
[1744563744835,7.77332944,129.58,129.55,7.77264919]
[1744563745636,7.7201,129.57,129.55,0.05184919]
[1744563745833,0.05352944,129.58,129.55,0.05184919]
[1744563746135,7.7205,129.56,129.55,0.05184919]
[1744563748637,7.7202,129.57,129.55,0.05184919]
[1744563749638,7.7205,129.56,129.55,0.05184919]
[1744563753341,0.05352944,129.58,129.55,29.37184919]
[1744563753540,49.45560436,129.66,129.56,13.99830436]
[1744563753735,7.7164,129.63,129.59,7.7182]
[1744563753939,7.7164,129.63,129.59,29.32]
[1744563754334,7.7164,129.63,129.6,7.718]
[1744563754740,7.76672248,129.63,129.6,7.7670296]
[1744563754941,7.7171,129.62,129.6,0.0490296]
[1744563755738,7.7176,129.61,129.6,0.0490296]
[1744563762145,7.7196,129.58,129.56,29.32]
[1744563762647,7.7199,129.57,129.56,29.32]
[1744563762947,7.7199,129.57,129.54,7.7216]
[1744563763150,7.7207,129.56,129.53,37.042]
[1744563763345,7.7207,129.56,129.54,0.04879836]
[1744563764450,7.7207,129.56,129.54,7.77049836]
[1744563766547,7.77679962,129.57,129.54,7.77049836]
[1744563768855,7.7209,129.56,129.54,0.04879836]
[1744563769154,0.05649962,129.57,129.54,0.04879836]
[1744563769853,7.77679962,129.57,129.54,7.77009836]
[1744563770553,7.77679962,129.57,129.55,7.7211]
[1744563773560,7.77679962,129.57,129.54,7.77019836]
[1744563774864,0.05649962,129.57,129.54,0.04879836]
[1744563775054,0.05649962,129.57,129.54,14.04710272]
[1744563775256,43.29830436,129.64,129.54,14.04710272]
[1744563775550,7.7185,129.6,129.57,7.7196]
[1744563775761,7.7185,129.6,129.57,37.0196]
[1744563776264,3.9453,129.65,129.58,13.99830436]
[1744563776458,29.3,129.67,129.6,13.99830436]